[Event "Live Chess"]
[Site "Chess.com"]
[Date "2023.05.20"]
[Round "-"]
[White "OleksiyJr1"]
[Black "ProfPoisson"]
[Result "0-1"]
[WhiteElo "933"]
[BlackElo "1066"]
[TimeControl "300"]
[EndTime "12:05:02 PDT"]
[Termination "ProfPoisson won by checkmate"]

1. e4 {[%clk 0:04:57.8]} 1... e5 {[%clk 0:04:50.8]} 2. Nf3 {[%clk 0:04:57]} 2...
Nf6 {[%clk 0:04:48.4]} 3. Bc4 {[%clk 0:04:56.5]} 3... Nxe4 {[%clk 0:04:46.3]} 4.
Nc3 {[%clk 0:04:55.8]} 4... Nxc3 {[%clk 0:04:43.1]} 5. dxc3 {[%clk 0:04:19.3]}
5... f6 {[%clk 0:04:40.8]} 6. Nxe5 {[%clk 0:03:41.5]} 6... Qe7 {[%clk
0:04:28.5]} 7. Qh5+ {[%clk 0:03:34.9]} 7... g6 {[%clk 0:04:24.1]} 8. Qe2 {[%clk
0:03:22.5]} 8... Qxe5 {[%clk 0:04:21.1]} 9. Qxe5+ {[%clk 0:03:20.4]} 9... fxe5
{[%clk 0:04:18.7]} 10. Bg5 {[%clk 0:03:17.4]} 10... Be7 {[%clk 0:04:14]} 11.
Bxe7 {[%clk 0:03:14.4]} 11... Kxe7 {[%clk 0:04:12.2]} 12. O-O-O {[%clk
0:03:13.9]} 12... Nc6 {[%clk 0:04:06.1]} 13. Rhe1 {[%clk 0:03:13.8]} 13... d6
{[%clk 0:04:03.5]} 14. Bb5 {[%clk 0:03:08.5]} 14... a6 {[%clk 0:03:59.7]} 15.
Bc4 {[%clk 0:03:05.9]} 15... b5 {[%clk 0:03:56.3]} 16. Bd5 {[%clk 0:03:05.3]}
16... Bd7 {[%clk 0:03:53.7]} 17. f4 {[%clk 0:03:03.2]} 17... Raf8 {[%clk
0:03:47.6]} 18. Bxc6 {[%clk 0:02:58.5]} 18... Bxc6 {[%clk 0:03:36.1]} 19. fxe5
{[%clk 0:02:58.4]} 19... Kd7 {[%clk 0:03:28]} 20. e6+ {[%clk 0:02:57]} 20... Ke7
{[%clk 0:03:26.2]} 21. g3 {[%clk 0:02:54]} 21... Rf2 {[%clk 0:03:22.6]} 22. Rd2
{[%clk 0:02:51]} 22... Rxd2 {[%clk 0:03:17.3]} 23. Kxd2 {[%clk 0:02:47.5]} 23...
Rf8 {[%clk 0:03:15]} 24. Ke3 {[%clk 0:02:43.4]} 24... Rf3+ {[%clk 0:03:11.6]}
25. Kd4 {[%clk 0:02:42]} 25... Rf2 {[%clk 0:03:08.2]} 26. Kd3 {[%clk 0:02:40.2]}
26... Rxh2 {[%clk 0:03:06.6]} 27. b3 {[%clk 0:02:38.6]} 27... Rh3 {[%clk
0:03:03.9]} 28. Re3 {[%clk 0:02:36.3]} 28... h5 {[%clk 0:03:00.9]} 29. c4 {[%clk
0:02:34.5]} 29... bxc4+ {[%clk 0:02:58.4]} 30. Kxc4 {[%clk 0:02:33.8]} 30...
Bb5+ {[%clk 0:02:54]} 31. Kb4 {[%clk 0:02:32.3]} 31... c5+ {[%clk 0:02:51.4]}
32. Ka5 {[%clk 0:02:30.7]} 32... h4 {[%clk 0:02:45.9]} 33. c4 {[%clk 0:02:29.8]}
33... Rxg3 {[%clk 0:02:40.7]} 34. Re4 {[%clk 0:02:18.5]} 34... g5 {[%clk
0:02:22.9]} 35. cxb5 {[%clk 0:02:12]} 35... axb5 {[%clk 0:02:21.5]} 36. Kxb5
{[%clk 0:02:10.4]} 36... h3 {[%clk 0:02:18.2]} 37. a4 {[%clk 0:02:09.7]} 37...
h2 {[%clk 0:02:16.6]} 38. Re1 {[%clk 0:02:08.6]} 38... Rg1 {[%clk 0:02:14.3]}
39. Rxg1 {[%clk 0:02:04]} 39... hxg1=Q {[%clk 0:02:12]} 40. a5 {[%clk
0:02:03.5]} 40... Qd4 {[%clk 0:02:08.2]} 41. a6 {[%clk 0:02:02.1]} 41... Qb4+
{[%clk 0:02:06.6]} 42. Kc6 {[%clk 0:01:59.4]} 42... Kxe6 {[%clk 0:02:02.1]} 43.
a7 {[%clk 0:01:57.6]} 43... Qa5 {[%clk 0:01:58.9]} 44. Kb7 {[%clk 0:01:56.6]}
44... Qxa7+ {[%clk 0:01:56.4]} 45. Kxa7 {[%clk 0:01:55.9]} 45... g4 {[%clk
0:01:55.8]} 46. Kb6 {[%clk 0:01:55.8]} 46... g3 {[%clk 0:01:55]} 47. Kc6 {[%clk
0:01:55.7]} 47... g2 {[%clk 0:01:54.3]} 48. b4 {[%clk 0:01:55.6]} 48... g1=Q
{[%clk 0:01:52.5]} 49. bxc5 {[%clk 0:01:55.5]} 49... Qxc5+ {[%clk 0:01:47.8]}
50. Kb7 {[%clk 0:01:54.6]} 50... d5 {[%clk 0:01:45]} 51. Kb8 {[%clk 0:01:53.7]}
51... d4 {[%clk 0:01:43.2]} 52. Ka8 {[%clk 0:01:53.6]} 52... Qb4 {[%clk
0:01:38.6]} 53. Ka7 {[%clk 0:01:52.6]} 53... d3 {[%clk 0:01:37.8]} 54. Ka6
{[%clk 0:01:51.9]} 54... d2 {[%clk 0:01:37.2]} 55. Ka7 {[%clk 0:01:51.7]} 55...
d1=R {[%clk 0:01:34.7]} 56. Ka8 {[%clk 0:01:50.9]} 56... Ra1# {[%clk 0:01:33.4]}
0-1

[Event "Live Chess"]
[Site "Chess.com"]
[Date "2023.05.20"]
[Round "-"]
[White "raminguy"]
[Black "ClassyChameleon"]
[Result "1-0"]
[WhiteElo "1997"]
[BlackElo "1057"]
[TimeControl "300"]
[EndTime "12:05:05 PDT"]
[Termination "raminguy won by resignation"]

1. d4 {[%clk 0:04:59.2]} 1... d5 {[%clk 0:04:59]} 2. Nc3 {[%clk 0:04:58.8]} 2...
Nc6 {[%clk 0:04:58.4]} 3. e4 {[%clk 0:04:57.5]} 3... dxe4 {[%clk 0:04:57.2]} 4.
d5 {[%clk 0:04:57.4]} 4... Ne5 {[%clk 0:04:50.5]} 5. Bf4 {[%clk 0:04:56.9]} 5...
Bg4 {[%clk 0:04:38.1]} 6. Qd4 {[%clk 0:04:47.4]} 6... f6 {[%clk 0:04:30.8]} 7.
Bxe5 {[%clk 0:04:45]} 7... fxe5 {[%clk 0:04:29.1]} 8. Qxe4 {[%clk 0:04:44.3]}
8... Nf6 {[%clk 0:04:21.6]} 9. Qxe5 {[%clk 0:04:37.5]} 9... c5 {[%clk
0:04:09.5]} 10. Bb5+ {[%clk 0:04:29.1]} 10... Kf7 {[%clk 0:04:03.1]} 11. h3
{[%clk 0:04:21.2]} 11... Bh5 {[%clk 0:03:42.1]} 12. Bc4 {[%clk 0:04:18]} 12...
g6 {[%clk 0:03:29.6]} 13. g4 {[%clk 0:04:08.8]} 13... Nxg4 {[%clk 0:03:24.9]}
14. hxg4 {[%clk 0:04:06.5]} 14... Bxg4 {[%clk 0:03:24.6]} 15. d6+ {[%clk
0:04:00.9]} 15... e6 {[%clk 0:03:17.5]} 16. f3 {[%clk 0:03:56]} 16... Bxd6
{[%clk 0:03:11.1]} 17. Qe3 {[%clk 0:03:17.2]} 17... Bf5 {[%clk 0:02:55.4]} 18.
O-O-O {[%clk 0:03:14]} 18... Qf6 {[%clk 0:02:45.2]} 19. Rxd6 {[%clk 0:03:09.2]}
19... Rad8 {[%clk 0:02:42.1]} 20. Rxd8 {[%clk 0:03:01.3]} 20... Rxd8 {[%clk
0:02:41.2]} 21. Nge2 {[%clk 0:03:00.4]} 21... a6 {[%clk 0:02:37.5]} 22. Rxh7+
{[%clk 0:02:56.5]} 22... Kg8 {[%clk 0:02:35.7]} 23. Rh1 {[%clk 0:02:37.6]} 23...
b5 {[%clk 0:02:29.2]} 24. Bd3 {[%clk 0:02:36]} 24... Bxd3 {[%clk 0:02:10.2]} 25.
cxd3 {[%clk 0:02:34.1]} 25... Kg7 {[%clk 0:02:09]} 26. Ne4 {[%clk 0:02:32.7]}
26... Qe5 {[%clk 0:01:28.3]} 27. Qh6+ {[%clk 0:02:29.2]} 27... Kf7 {[%clk
0:01:22.5]} 28. Qh7+ {[%clk 0:02:25.7]} 28... Ke8 {[%clk 0:01:19.5]} 29. Qxg6+
{[%clk 0:02:21.3]} 29... Kd7 {[%clk 0:01:18.2]} 30. Rh7+ {[%clk 0:02:11]} 30...
Kc8 {[%clk 0:01:12.5]} 31. Qf7 {[%clk 0:02:05.3]} 31... Rxd3 {[%clk 0:01:02.4]}
32. Qb7+ {[%clk 0:02:03]} 32... Kd8 {[%clk 0:00:46.8]} 33. Qa8+ {[%clk
0:02:01.3]} 1-0

[Event "Live Chess"]
[Site "Chess.com"]
[Date "2023.05.20"]
[Round "-"]
[White "rideuv21"]
[Black "AttackingSnowLeopard"]
[Result "1/2-1/2"]
[WhiteElo "1839"]
[BlackElo "2042"]
[TimeControl "300"]
[EndTime "12:05:09 PDT"]
[Termination "Game drawn - insufficient material"]

1. e4 {[%clk 0:04:41.2]} 1... e5 {[%clk 0:04:57.7]} 2. d4 {[%clk 0:04:40.3]}
2... exd4 {[%clk 0:04:56.4]} 3. Nf3 {[%clk 0:04:39.7]} 3... Nc6 {[%clk
0:04:55.3]} 4. Bc4 {[%clk 0:04:39.2]} 4... Nf6 {[%clk 0:04:53.7]} 5. e5 {[%clk
0:04:38.5]} 5... d5 {[%clk 0:04:52.5]} 6. Bb5 {[%clk 0:04:38]} 6... Nd7 {[%clk
0:04:51.8]} 7. O-O {[%clk 0:04:36.4]} 7... Be7 {[%clk 0:04:48.5]} 8. Bxc6 {[%clk
0:04:34.3]} 8... bxc6 {[%clk 0:04:47.2]} 9. Nxd4 {[%clk 0:04:34.2]} 9... Nb8
{[%clk 0:04:46]} 10. f4 {[%clk 0:04:32.6]} 10... c5 {[%clk 0:04:42.1]} 11. Nf3
{[%clk 0:04:31.4]} 11... Bf5 {[%clk 0:04:40.6]} 12. Nc3 {[%clk 0:04:28.5]} 12...
d4 {[%clk 0:04:38.5]} 13. Ne2 {[%clk 0:04:27.3]} 13... O-O {[%clk 0:04:37]} 14.
h3 {[%clk 0:04:25.7]} 14... Nc6 {[%clk 0:04:33.4]} 15. g4 {[%clk 0:04:24.3]}
15... Be4 {[%clk 0:04:32.5]} 16. Ng3 {[%clk 0:04:15.4]} 16... Qd5 {[%clk
0:04:30.9]} 17. Nxe4 {[%clk 0:04:03.9]} 17... Qxe4 {[%clk 0:04:29.7]} 18. Qe1
{[%clk 0:04:03.5]} 18... Qxe1 {[%clk 0:04:27.1]} 19. Rxe1 {[%clk 0:04:03.4]}
19... Nb4 {[%clk 0:04:26.4]} 20. Re2 {[%clk 0:03:56.6]} 20... Rfd8 {[%clk
0:04:12.5]} 21. Bd2 {[%clk 0:03:50.8]} 21... Nxc2 {[%clk 0:04:10.7]} 22. Rc1
{[%clk 0:03:46.8]} 22... d3 {[%clk 0:04:09.3]} 23. Rg2 {[%clk 0:03:43.6]} 23...
c4 {[%clk 0:04:08.8]} 24. Ne1 {[%clk 0:03:42.2]} 24... Bc5+ {[%clk 0:04:03.8]}
25. Kh1 {[%clk 0:03:37.8]} 25... Nxe1 {[%clk 0:03:58.4]} 26. Bxe1 {[%clk
0:03:33.7]} 26... Be3 {[%clk 0:03:56]} 27. Bd2 {[%clk 0:03:28.9]} 27... Bxd2
{[%clk 0:03:47.6]} 28. Rxd2 {[%clk 0:03:28.8]} 28... Rd4 {[%clk 0:03:46.5]} 29.
f5 {[%clk 0:03:27.5]} 29... Kf8 {[%clk 0:03:44.2]} 30. b3 {[%clk 0:03:23.8]}
30... cxb3 {[%clk 0:03:40.4]} 31. axb3 {[%clk 0:03:23.7]} 31... Re8 {[%clk
0:03:35.7]} 32. Rxc7 {[%clk 0:03:20.2]} 32... Rxe5 {[%clk 0:03:34.6]} 33. Rxa7
{[%clk 0:03:19]} 33... Rb5 {[%clk 0:03:22.4]} 34. Ra3 {[%clk 0:03:15.5]} 34...
Rbb4 {[%clk 0:03:21.9]} 35. Kg2 {[%clk 0:03:12.6]} 35... g6 {[%clk 0:03:00.4]}
36. fxg6 {[%clk 0:03:10.2]} 36... hxg6 {[%clk 0:02:58.8]} 37. Kf3 {[%clk
0:03:09.1]} 37... f5 {[%clk 0:02:58.3]} 38. gxf5 {[%clk 0:03:03.6]} 38... gxf5
{[%clk 0:02:54.6]} 39. Ke3 {[%clk 0:03:03.1]} 39... f4+ {[%clk 0:02:49.8]} 40.
Kf3 {[%clk 0:03:02.1]} 40... Kf7 {[%clk 0:02:47.8]} 41. Ra7+ {[%clk 0:02:56.8]}
41... Kf6 {[%clk 0:02:46.1]} 42. Ra6+ {[%clk 0:02:55.7]} 42... Ke7 {[%clk
0:02:35]} 43. Ra7+ {[%clk 0:02:53.7]} 43... Kd6 {[%clk 0:02:34.6]} 44. Ra6+
{[%clk 0:02:52.8]} 44... Kc5 {[%clk 0:02:33.5]} 45. Rf6 {[%clk 0:02:50.5]} 45...
Rxb3 {[%clk 0:02:11.8]} 46. Rxf4 {[%clk 0:02:48.7]} 46... Rxf4+ {[%clk
0:02:11.4]} 47. Kxf4 {[%clk 0:02:48.6]} 47... Kd4 {[%clk 0:02:09.7]} 48. h4
{[%clk 0:02:40.2]} 48... Rb5 {[%clk 0:01:32.4]} 49. Kg4 {[%clk 0:02:15.9]} 49...
Ke3 {[%clk 0:01:31.1]} 50. Rh2 {[%clk 0:02:14.1]} 50... d2 {[%clk 0:01:28.7]}
51. Rh1 {[%clk 0:02:12.1]} 51... Ke2 {[%clk 0:01:02.4]} 52. h5 {[%clk
0:02:10.9]} 52... d1=Q {[%clk 0:01:01.1]} 53. Rxd1 {[%clk 0:02:10.4]} 53... Kxd1
{[%clk 0:01:00.7]} 54. h6 {[%clk 0:02:09]} 54... Ke2 {[%clk 0:00:59.6]} 55. h7
{[%clk 0:02:07.8]} 55... Rb8 {[%clk 0:00:59.3]} 56. Kg5 {[%clk 0:02:06.4]} 56...
Kf3 {[%clk 0:00:58.9]} 57. Kg6 {[%clk 0:02:05.9]} 57... Kg4 {[%clk 0:00:58.4]}
58. Kg7 {[%clk 0:02:05.5]} 58... Kg5 {[%clk 0:00:57.6]} 59. h8=Q {[%clk
0:02:03]} 59... Rb7+ {[%clk 0:00:54.8]} 60. Kg8 {[%clk 0:01:58.5]} 60... Rb8+
{[%clk 0:00:32]} 61. Kg7 {[%clk 0:01:56.8]} 61... Rxh8 {[%clk 0:00:31.5]} 62.
Kxh8 {[%clk 0:01:56.7]} 1/2-1/2

[Event "Live Chess"]
[Site "Chess.com"]
[Date "2023.05.20"]
[Round "-"]
[White "luckywookie"]
[Black "LaupMiths"]
[Result "0-1"]
[WhiteElo "744"]
[BlackElo "1822"]
[TimeControl "300"]
[EndTime "12:05:13 PDT"]
[Termination "LaupMiths won on time"]

1. e4 {[%clk 0:04:58.1]} 1... c5 {[%clk 0:04:56.1]} 2. c3 {[%clk 0:04:56.5]}
2... Nf6 {[%clk 0:04:50.3]} 3. e5 {[%clk 0:04:52.5]} 3... Nd5 {[%clk 0:04:49.5]}
4. Nf3 {[%clk 0:04:51.4]} 4... d6 {[%clk 0:04:46.1]} 5. exd6 {[%clk 0:04:48.7]}
5... e6 {[%clk 0:04:43.8]} 6. g3 {[%clk 0:04:17.6]} 6... Bxd6 {[%clk 0:04:40.5]}
7. Bg2 {[%clk 0:04:15.8]} 7... O-O {[%clk 0:04:38.2]} 8. O-O {[%clk 0:04:14.3]}
8... c4 {[%clk 0:04:36.3]} 9. d4 {[%clk 0:04:00.9]} 9... cxd3 {[%clk 0:04:32.3]}
10. Qxd3 {[%clk 0:03:59.7]} 10... Nc6 {[%clk 0:04:29]} 11. Be3 {[%clk
0:03:41.5]} 11... Nxe3 {[%clk 0:04:23.8]} 12. Qxe3 {[%clk 0:03:40.2]} 12... e5
{[%clk 0:04:03.9]} 13. Rd1 {[%clk 0:03:38.1]} 13... Qf6 {[%clk 0:04:01.4]} 14.
Nbd2 {[%clk 0:03:09.3]} 14... Bc7 {[%clk 0:03:54.6]} 15. Ne4 {[%clk 0:03:05.3]}
15... Qg6 {[%clk 0:03:50.9]} 16. Nh4 {[%clk 0:02:57.6]} 16... Qh5 {[%clk
0:03:41]} 17. Bf3 {[%clk 0:02:52.9]} 17... Bg4 {[%clk 0:03:38.9]} 18. Rd7 {[%clk
0:02:38.1]} 18... Bxf3 {[%clk 0:03:37]} 19. Qxf3 {[%clk 0:02:34.5]} 19... Qxf3
{[%clk 0:03:33.5]} 20. Nxf3 {[%clk 0:02:31.7]} 20... Bb6 {[%clk 0:03:28.4]} 21.
Rxb7 {[%clk 0:02:28.9]} 21... Rad8 {[%clk 0:03:25.7]} 22. Nfd2 {[%clk
0:02:10.4]} 22... Na5 {[%clk 0:03:06.2]} 23. Rc7 {[%clk 0:02:03.6]} 23... Bxc7
{[%clk 0:02:59.1]} 24. b4 {[%clk 0:01:59.9]} 24... Nb7 {[%clk 0:02:53]} 25. c4
{[%clk 0:01:55.2]} 25... h6 {[%clk 0:02:47.7]} 26. c5 {[%clk 0:01:51.3]} 26...
f5 {[%clk 0:02:46.6]} 27. Nd6 {[%clk 0:01:43.8]} 27... Nxd6 {[%clk 0:02:43.3]}
28. cxd6 {[%clk 0:01:40.9]} 28... Rxd6 {[%clk 0:02:42.9]} 29. Nc4 {[%clk
0:01:38.5]} 29... Rd4 {[%clk 0:02:40.6]} 30. Rc1 {[%clk 0:01:32.5]} 30... Rfd8
{[%clk 0:02:36.9]} 31. Ne3 {[%clk 0:01:25.5]} 31... Bb6 {[%clk 0:02:23.1]} 32.
a3 {[%clk 0:01:16.9]} 32... f4 {[%clk 0:02:18.6]} 33. Nf5 {[%clk 0:01:14.6]}
33... Rd1+ {[%clk 0:02:13.4]} 34. Rxd1 {[%clk 0:01:11.2]} 34... Rxd1+ {[%clk
0:02:13.3]} 35. Kg2 {[%clk 0:01:09.4]} 35... g5 {[%clk 0:02:04.1]} 36. gxf4
{[%clk 0:01:06.1]} 36... exf4 {[%clk 0:02:02.5]} 37. Kf3 {[%clk 0:01:04.3]}
37... Rd3+ {[%clk 0:01:59.9]} 38. Kg4 {[%clk 0:01:02.9]} 38... Rxa3 {[%clk
0:01:58.4]} 39. Nxh6+ {[%clk 0:01:01.5]} 39... Kg7 {[%clk 0:01:51.7]} 40. Nf5+
{[%clk 0:01:00.2]} 40... Kf6 {[%clk 0:01:48.6]} 41. Nd6 {[%clk 0:00:58.2]} 41...
Bxf2 {[%clk 0:01:42.8]} 42. Ne4+ {[%clk 0:00:54.7]} 42... Kg6 {[%clk 0:01:41.3]}
43. Nxf2 {[%clk 0:00:53.5]} 43... Rb3 {[%clk 0:01:39.7]} 44. Ne4 {[%clk
0:00:49.7]} 44... Rxb4 {[%clk 0:01:38.3]} 45. Nxg5 {[%clk 0:00:48.7]} 45... a5
{[%clk 0:01:32.7]} 46. Ne6 {[%clk 0:00:39]} 46... a4 {[%clk 0:01:30.1]} 47. Nc5
{[%clk 0:00:35.9]} 47... a3 {[%clk 0:01:28.4]} 48. Nd3 {[%clk 0:00:34.8]} 48...
Rd4 {[%clk 0:01:18.1]} 49. Ne5+ {[%clk 0:00:25.4]} 49... Kg7 {[%clk 0:01:13.4]}
50. Nf3 {[%clk 0:00:21.4]} 50... Rb4 {[%clk 0:00:55]} 51. Nd2 {[%clk 0:00:09]}
51... a2 {[%clk 0:00:53.2]} 52. Nf3 {[%clk 0:00:00.3]} 52... a1=Q {[%clk
0:00:50.4]} 0-1

[Event "Live Chess"]
[Site "Chess.com"]
[Date "2023.05.20"]
[Round "-"]
[White "brownbear2704"]
[Black "Salpingidis"]
[Result "0-1"]
[WhiteElo "1217"]
[BlackElo "2287"]
[TimeControl "300"]
[EndTime "12:05:19 PDT"]
[Termination "Salpingidis won by resignation"]

1. d4 {[%clk 0:04:56.3]} 1... e6 {[%clk 0:04:59.2]} 2. c4 {[%clk 0:04:52.5]}
2... d5 {[%clk 0:04:58.2]} 3. Nc3 {[%clk 0:04:44.6]} 3... Nf6 {[%clk 0:04:57.6]}
4. e3 {[%clk 0:04:39.8]} 4... Be7 {[%clk 0:04:51.1]} 5. Nf3 {[%clk 0:04:33.3]}
5... O-O {[%clk 0:04:49.8]} 6. Bd3 {[%clk 0:04:11.5]} 6... dxc4 {[%clk
0:04:48.1]} 7. Bxc4 {[%clk 0:04:07.9]} 7... b6 {[%clk 0:04:48]} 8. d5 {[%clk
0:04:01.4]} 8... exd5 {[%clk 0:04:42.2]} 9. Nxd5 {[%clk 0:03:58.7]} 9... Nxd5
{[%clk 0:04:35.9]} 10. Bxd5 {[%clk 0:03:56.2]} 10... c6 {[%clk 0:04:35.5]} 11.
Be4 {[%clk 0:03:44.5]} 11... Qxd1+ {[%clk 0:04:33.7]} 12. Kxd1 {[%clk
0:03:43.7]} 12... Rd8+ {[%clk 0:04:33.5]} 13. Ke2 {[%clk 0:03:42]} 13... Ba6+
{[%clk 0:04:29.4]} 14. Ke1 {[%clk 0:03:25.4]} 14... g6 {[%clk 0:04:27.6]} 15.
Nd4 {[%clk 0:03:17.7]} 15... Bb7 {[%clk 0:04:19.8]} 16. f3 {[%clk 0:03:09.8]}
16... f5 {[%clk 0:04:16.7]} 17. Bd3 {[%clk 0:03:06.6]} 17... c5 {[%clk
0:04:15.3]} 18. Ne6 {[%clk 0:02:58.1]} 18... Rxd3 {[%clk 0:03:48]} 19. Nc7
{[%clk 0:02:43.9]} 19... Nc6 {[%clk 0:03:45.4]} 20. Nxa8 {[%clk 0:02:39.9]}
20... Bxa8 {[%clk 0:03:45.3]} 21. Kf2 {[%clk 0:02:31.4]} 21... Bf6 {[%clk
0:03:30.3]} 22. Re1 {[%clk 0:02:22.8]} 22... Nb4 {[%clk 0:03:27.8]} 23. e4
{[%clk 0:02:12.7]} 23... Nc2 {[%clk 0:03:24.7]} 24. exf5 {[%clk 0:01:50.8]}
24... Nxe1 {[%clk 0:03:20.3]} 25. Kxe1 {[%clk 0:01:49.7]} 25... gxf5 {[%clk
0:03:19]} 26. Bf4 {[%clk 0:01:37.1]} 26... Bc6 {[%clk 0:03:12]} 27. b3 {[%clk
0:01:27.1]} 27... Bxa1 {[%clk 0:03:09.3]} 0-1

[Event "Live Chess"]
[Site "Chess.com"]
[Date "2023.05.20"]
[Round "-"]
[White "Balu13"]
[Black "Tilbs_12"]
[Result "0-1"]
[WhiteElo "837"]
[BlackElo "1564"]
[TimeControl "300"]
[EndTime "12:05:20 PDT"]
[Termination "Tilbs_12 won by resignation"]

1. e4 {[%clk 0:04:58.6]} 1... c6 {[%clk 0:04:59.1]} 2. f4 {[%clk 0:04:56.4]}
2... d5 {[%clk 0:04:57.6]} 3. e5 {[%clk 0:04:46.6]} 3... c5 {[%clk 0:04:56.9]}
4. Nf3 {[%clk 0:04:44.2]} 4... Bg4 {[%clk 0:04:54.7]} 5. h3 {[%clk 0:04:36]}
5... Bxf3 {[%clk 0:04:53.3]} 6. Qxf3 {[%clk 0:04:34.7]} 6... Nc6 {[%clk
0:04:52.9]} 7. c4 {[%clk 0:04:32.1]} 7... d4 {[%clk 0:04:46.8]} 8. d3 {[%clk
0:04:31.1]} 8... e6 {[%clk 0:04:39.3]} 9. Nd2 {[%clk 0:04:29.9]} 9... Nb4 {[%clk
0:04:32.4]} 10. Qxb7 {[%clk 0:04:13.2]} 10... Nc2+ {[%clk 0:04:30.5]} 11. Kd1
{[%clk 0:04:11.1]} 11... Nxa1 {[%clk 0:04:25.5]} 12. Qc6+ {[%clk 0:04:09.6]}
12... Ke7 {[%clk 0:04:22.9]} 13. Qxc5+ {[%clk 0:04:05.5]} 13... Ke8 {[%clk
0:04:22.1]} 14. Qb5+ {[%clk 0:04:01.2]} 14... Qd7 {[%clk 0:04:18.7]} 15. Qxd7+
{[%clk 0:03:48.5]} 15... Kxd7 {[%clk 0:04:17.5]} 16. b3 {[%clk 0:03:39.4]} 16...
Nh6 {[%clk 0:04:08.3]} 17. Bb2 {[%clk 0:03:37.4]} 17... Nf5 {[%clk 0:04:01.7]}
18. Bxa1 {[%clk 0:03:19.6]} 18... Ne3+ {[%clk 0:03:56.9]} 19. Ke2 {[%clk
0:03:18.5]} 19... Nf5 {[%clk 0:03:46.3]} 20. Nf3 {[%clk 0:03:10]} 20... Ng3+
{[%clk 0:03:41.2]} 21. Ke1 {[%clk 0:02:58.3]} 21... Nxh1 {[%clk 0:03:40.3]} 22.
Bxd4 {[%clk 0:02:51.4]} 22... Bb4+ {[%clk 0:03:38.2]} 23. Ke2 {[%clk 0:02:46]}
23... Ng3+ {[%clk 0:03:37]} 24. Kf2 {[%clk 0:02:45]} 24... Nxf1 {[%clk
0:03:32.4]} 25. Kxf1 {[%clk 0:02:43.6]} 25... h6 {[%clk 0:03:21.8]} 26. g4
{[%clk 0:02:35]} 26... a5 {[%clk 0:03:11.3]} 27. f5 {[%clk 0:02:16.7]} 27... a4
{[%clk 0:03:03]} 28. fxe6+ {[%clk 0:02:07.4]} 28... fxe6 {[%clk 0:03:02.1]} 29.
Ke2 {[%clk 0:01:43.5]} 29... axb3 {[%clk 0:03:00.9]} 30. axb3 {[%clk 0:01:42.2]}
30... Ra2+ {[%clk 0:03:00]} 31. Ke3 {[%clk 0:01:41]} 31... Kc6 {[%clk
0:02:44.6]} 32. Nh4 {[%clk 0:01:18]} 32... Bc5 {[%clk 0:02:35.9]} 33. Ng6 {[%clk
0:01:09.8]} 33... Bxd4+ {[%clk 0:02:33.8]} 34. Kxd4 {[%clk 0:01:08.4]} 34...
Rd8+ {[%clk 0:02:30.4]} 35. Ke4 {[%clk 0:01:02.1]} 35... Re2+ {[%clk 0:02:26.9]}
36. Kf3 {[%clk 0:01:00.8]} 36... Rb2 {[%clk 0:02:22.5]} 37. Ne7+ {[%clk
0:00:58.3]} 37... Kb6 {[%clk 0:02:12]} 0-1

[Event "Live Chess"]
[Site "Chess.com"]
[Date "2023.05.20"]
[Round "-"]
[White "ameetghasi100"]
[Black "tuppyglossop"]
[Result "1-0"]
[WhiteElo "2705"]
[BlackElo "1597"]
[TimeControl "300"]
[EndTime "12:05:28 PDT"]
[Termination "ameetghasi100 won by resignation"]

1. e4 {[%clk 0:04:55.6]} 1... e6 {[%clk 0:04:57.5]} 2. d4 {[%clk 0:04:53.5]}
2... d5 {[%clk 0:04:56.6]} 3. Nd2 {[%clk 0:04:53]} 3... c5 {[%clk 0:04:55.2]} 4.
Ngf3 {[%clk 0:04:51.1]} 4... Nc6 {[%clk 0:04:53.7]} 5. exd5 {[%clk 0:04:48.6]}
5... exd5 {[%clk 0:04:52.6]} 6. Bb5 {[%clk 0:04:46.8]} 6... Bd7 {[%clk
0:04:47.2]} 7. O-O {[%clk 0:04:43.6]} 7... Be7 {[%clk 0:04:45.8]} 8. Re1 {[%clk
0:04:43.5]} 8... Nf6 {[%clk 0:04:44.5]} 9. dxc5 {[%clk 0:04:41.6]} 9... O-O
{[%clk 0:04:43.3]} 10. Nb3 {[%clk 0:04:40.3]} 10... a6 {[%clk 0:04:41.7]} 11.
Bd3 {[%clk 0:04:39.1]} 11... Nb4 {[%clk 0:04:33.7]} 12. Be3 {[%clk 0:04:38]}
12... Nxd3 {[%clk 0:04:32.4]} 13. cxd3 {[%clk 0:04:37.9]} 13... Re8 {[%clk
0:04:24.6]} 14. Rc1 {[%clk 0:04:36.5]} 14... Rc8 {[%clk 0:04:23.2]} 15. Qd2
{[%clk 0:04:35.4]} 15... Bb5 {[%clk 0:04:19.3]} 16. Ne5 {[%clk 0:04:32.7]} 16...
Qc7 {[%clk 0:04:05.1]} 17. Bf4 {[%clk 0:04:30.6]} 17... Qd8 {[%clk 0:03:59.9]}
18. f3 {[%clk 0:04:18.5]} 18... Nh5 {[%clk 0:03:54.3]} 19. Be3 {[%clk
0:04:16.9]} 19... f6 {[%clk 0:03:39.1]} 20. Ng4 {[%clk 0:04:15.2]} 20... f5
{[%clk 0:03:35.8]} 21. Nf2 {[%clk 0:04:13.7]} 21... f4 {[%clk 0:03:33.5]} 22.
Bd4 {[%clk 0:04:12.6]} 22... Bf6 {[%clk 0:03:32.2]} 23. Ng4 {[%clk 0:04:10.6]}
23... Bxd4+ {[%clk 0:03:30.5]} 24. Nxd4 {[%clk 0:04:10.5]} 24... Qc7 {[%clk
0:03:12.9]} 25. Qc3 {[%clk 0:04:03.1]} 25... Qf7 {[%clk 0:02:59.5]} 26. b4
{[%clk 0:03:58.3]} 26... Nf6 {[%clk 0:02:52.7]} 27. Ne5 {[%clk 0:03:55.2]} 27...
Qh5 {[%clk 0:02:45]} 28. Nxb5 {[%clk 0:03:53.5]} 28... axb5 {[%clk 0:02:43.2]}
29. d4 {[%clk 0:03:52.6]} 29... Qf5 {[%clk 0:02:33.5]} 30. Re2 {[%clk
0:03:48.6]} 30... b6 {[%clk 0:02:27.5]} 31. Rce1 {[%clk 0:03:47.2]} 31... bxc5
{[%clk 0:02:21.7]} 32. dxc5 {[%clk 0:03:47.1]} 32... Rcd8 {[%clk 0:02:05.8]} 33.
Nc6 {[%clk 0:03:44.1]} 33... Rxe2 {[%clk 0:02:00.5]} 34. Rxe2 {[%clk 0:03:44]}
34... Re8 {[%clk 0:01:36.5]} 35. Rxe8+ {[%clk 0:03:40.6]} 35... Nxe8 {[%clk
0:01:36.4]} 36. Ne7+ {[%clk 0:03:39]} 1-0

[Event "Live Chess"]
[Site "Chess.com"]
[Date "2023.05.20"]
[Round "-"]
[White "thrithik"]
[Black "ElectricFalcon"]
[Result "0-1"]
[WhiteElo "455"]
[BlackElo "1066"]
[TimeControl "300"]
[EndTime "12:05:35 PDT"]
[Termination "ElectricFalcon won by checkmate"]

1. d3 {[%clk 0:04:58.6]} 1... e5 {[%clk 0:04:59.1]} 2. e4 {[%clk 0:04:57.3]}
2... Nc6 {[%clk 0:04:58.6]} 3. f4 {[%clk 0:04:55.1]} 3... Nf6 {[%clk 0:04:57.5]}
4. g3 {[%clk 0:04:53.7]} 4... exf4 {[%clk 0:04:56.6]} 5. gxf4 {[%clk 0:04:51.6]}
5... d6 {[%clk 0:04:56]} 6. e5 {[%clk 0:04:48.6]} 6... Bg4 {[%clk 0:04:54.8]} 7.
exf6 {[%clk 0:04:46.4]} 7... Bxd1 {[%clk 0:04:53.8]} 8. Kxd1 {[%clk 0:04:42.8]}
8... Qxf6 {[%clk 0:04:51.8]} 9. Be3 {[%clk 0:04:37.8]} 9... O-O-O {[%clk
0:04:49.9]} 10. Bd4 {[%clk 0:04:35]} 10... Qxd4 {[%clk 0:04:47.5]} 11. c3 {[%clk
0:04:32.7]} 11... Qxf4 {[%clk 0:04:42]} 12. Nd2 {[%clk 0:04:28.4]} 12... Be7
{[%clk 0:04:38.3]} 13. Nh3 {[%clk 0:04:19]} 13... Qg4+ {[%clk 0:04:34]} 14. Be2
{[%clk 0:04:10.8]} 14... Qxh3 {[%clk 0:04:32.8]} 15. Rf1 {[%clk 0:03:57]} 15...
Bg5 {[%clk 0:04:26.5]} 16. Rxf7 {[%clk 0:03:51.7]} 16... Qe3 {[%clk 0:04:23.3]}
17. Rxg7 {[%clk 0:03:49.8]} 17... Qxd2# {[%clk 0:04:22.1]} 0-1